Cogmind - Beta 15 @@@ ROGUE MODE // 2025.08.02 @ 11:00:13 Player: FrigidRock Result: Destroyed by R7-XDG(j) with Overtuned Pulse Rifle Performance ------------- Evolutions (0) 0 Regions Visited (3) 600 Robots Destroyed (21) 105 Value Destroyed (587) 587 Prototype IDs (6) 120 Alien Tech Used (0) 0 Bonus (784) 784 TOTAL SCORE: 2196 Bonus ------- Registered with UFD 300 Met Optimus in HQ 500 Friendly Fire -16 Cogmind --------- Core Integrity 0/250 Matter 186/300 Energy 300/300 System Corruption 1% Temperature Cool (19) Movement Rolling (165) Ox5 Location -9/Scraptown Parts ------- > --- POWER (1) -------- Angular Momentum Engine > --- PROPULSION (2) --- Titanium Leg Armored Wheel > --- UTILITY (2) ------ High-capacity Storage Unit Improved Sensor Array > --- WEAPON (2) ------- Coil Gun Advanced Assault Cannon > --- INVENTORY (20) --- Fission Core Subdweller Monowheel Weapon Shielding Riot Gun Heavy Rocket Launcher Peak State ------------ > --- POWER ------------ Angular Momentum Engine > --- PROPULSION ------- Titanium Leg Armored Wheel > --- UTILITY ---------- High-capacity Storage Unit Improved Sensor Array > --- WEAPON ----------- Coil Gun Advanced Assault Cannon > --- INVENTORY -------- Fission Core Subdweller Monowheel Weapon Shielding Riot Gun Heavy Rocket Launcher SUBCON Basin [Rating: 42] Favorites ----------- Power Ion Engine Engine Ion Engine Propulsion Aluminum Leg Leg Aluminum Leg Wheel Armored Wheel Utility High-capacity Storage Unit Device Heat Sink Storage High-capacity Storage Unit Weapon Light Cannon Energy Gun Small Laser Ballistic Gun Coil Gun Ballistic Cannon Light Cannon Launcher Grenade Launcher Build | -11 -10 -10 -9 ------- Run | Yrd Mat Sub Scr Slots Evolved . | . . . . Power . | . . . . Propulsion . | . . . . Utility . | . . . . Weapon . | . . . . Parts Attached 23 | 6 3 7 7 Power 3 | 1 . 1 1 Engine 3 | 1 . 1 1 Core . | . . . . Reactor . | . . . . Propulsion 7 | 2 . 3 2 Treads . | . . . . Leg 3 | 2 . . 1 Wheel 4 | . . 3 1 Hover . | . . . . Flight . | . . . . Utility 4 | 1 1 1 1 Device 2 | . 1 . 1 Storage 2 | 1 . 1 . Processor . | . . . . Hackware . | . . . . Protection . | . . . . Artifact . | . . . . Weapon 9 | 2 2 2 3 Energy Gun 2 | 1 . . 1 Energy Cannon . | . . . . Ballistic Gun 2 | 1 . . 1 Ballistic Cannon 4 | . 2 1 1 Launcher 1 | . . 1 . Special Weapon . | . . . . Impact Weapon . | . . . . Slashing Weapon . | . . . . Piercing Weapon . | . . . . Special Melee Weapon . | . . . . Unidentified Prototypes . | . . . . Parts Lost 8 | . . 8 . Power 1 | . . 1 . Propulsion 4 | . . 4 . Utility 1 | . . 1 . Weapon 2 | . . 2 . Highest Loss Streak 5 | . . 5 . To Critical Strikes . | . . . . Average Backups 5 | . 5 7 4 Power . | . . . . Propulsion 1 | . 1 1 . Utility 1 | . 1 1 . Weapon 2 | . 2 3 2 Tool/Special . | . . . . Unused Backups 9 | . 2 1 6 Power 1 | . . . 1 Propulsion 2 | . 2 . . Utility 2 | . . 1 1 Weapon 4 | . . . 4 Tool/Special . | . . . . Average Slot Usage (%) 86 | . 92 93 78 Engine 11 | . 14 13 9 Leg 14 | . 28 17 9 Wheel 10 | . . 9 14 Device 10 | . 7 12 9 Storage 13 | . 14 13 14 Energy Gun 1 | . 6 . . Ballistic Gun 5 | . 6 . 9 Ballistic Cannon 12 | . 14 15 9 Launcher 4 | . . 10 . Peak Build Rating 42 | 6 7 21 42 Average Rating 18 | 4 6 7 30 On Entrance 8 | . 6 7 21 Naked Turns 21 | . . 21 . Heaviest Build 65 | 12 17 40 65 Greatest Support 20 | 20 20 20 20 Greatest Overweight (x) 5 | . . 3 5 Average Overweight (x) 1 | . . . 4 Largest Inventory Capacity 20 | 8 8 20 20 Average Capacity 13 | 6 8 8 20 Most Carried 20 | 1 8 19 20 Average Carried 11 | . 5 7 15 Final Capacity 20 | 8 8 20 20 Final Carried 19 | 1 8 19 5 Class Distribution -------------------- 100% | Mutant Dominant Class ---------------- Mutant | -10/Materials Mutant | -10/Subcaves Mutant | -9/Scraptown Resources | -11 -10 -10 -9 ----------- Run | Yrd Mat Sub Scr Matter Collected 863 | 133 164 489 77 Remotely . | . . . . Salvage Created 469 | . 150 185 134 Parts 30 | . 10 14 6 Haulers Intercepted 2 | . 2 . . Recyclers Shooed . | . . . . Parts Field Recycled . | . . . . Retrieved Matter . | . . . . Parts Self-Destructed 1 | . . 1 . Prevented . | . . . . Kills | -11 -10 -10 -9 ------- Run | Yrd Mat Sub Scr Combat Hostiles Destroyed 15 | . 2 11 2 Guns 2 | . 1 . 1 Cannons 5 | . 1 3 1 AOE 8 | . . 8 . Classes Destroyed 8 | . 3 4 1 Hauler 2 | . 2 . . Turret 2 | . . 2 . Watcher 2 | . 2 . . Swarmer 4 | . . 4 . Grunt 2 | . 2 . . Sentry 1 | . . 1 . Subdweller 6 | . . 6 . Scrapper 2 | . . . 2 Best Kill Streak 6 | . 2 6 2 Combat Bots Only 4 | . 1 4 2 Max Kills in Single Turn 1 | . 1 1 1 Gunslinging . | . . . . Exploded 1 | . . 1 . Melee . | . . . . Uniques/NPCs Destroyed . | . . . . Combat | -11 -10 -10 -9 -------- Run | Yrd Mat Sub Scr Hostile Shots Fired 106 | . 10 77 19 Missed 41 | . 5 33 3 Hits 65 | . 5 44 16 Projectile 65 | . 5 44 16 AOE 1 | . . 1 . Critical Strikes 3 | . . . 3 Damage Taken 1238 | . 64 871 303 Core 265 | . . 190 75 Absorbed by Shields . | . . . . Core Remaining (%) 100 | 100 . . . Volleys Fired 60 | . 19 38 3 Largest 2 | . 2 2 2 Hottest 70 | . 60 60 70 Shots Fired 105 | . 37 62 6 Gun 12 | . 9 . 3 Cannon 65 | . 28 34 3 Launcher 28 | . . 28 . Special . | . . . . Kinetic 73 | . 33 34 6 Thermal 4 | . 4 . . Explosive 28 | . . 28 . Electromagnetic . | . . . . Robot Hit Streak 10 | . 4 10 2 Robot Miss Streak 3 | . 3 2 1 Penetration Max . | . . . . Secondary Targets . | . . . . Shots Hit Robots 60 | . 22 35 3 Core Hits 36 | . 7 27 2 Critical Kills 1 | . . . 1 Critical Parts Destroyed . | . . . . Critical Strikes 1 | . . . 1 Destroy 1 | . . . 1 Melee Attacks . | . . . . Impact . | . . . . Slashing . | . . . . Piercing . | . . . . Sneak Attacks . | . . . . Combat Hostiles . | . . . . Follow-up Attacks . | . . . . Damage Inflicted 1757 | . 339 1337 81 Guns 66 | . 42 . 24 Cannons 705 | . 271 377 57 Explosions 960 | . . 960 . Melee . | . . . . Ramming 26 | . 26 . . Kinetic 749 | . 291 377 81 Thermal 22 | . 22 . . Explosive 960 | . . 960 . Electromagnetic . | . . . . Impact . | . . . . Slashing . | . . . . Piercing . | . . . . Highest Corruption 1 | . . . 1 Average Corruption 1 | . . . 1 Corruption Purged . | . . . . Corruption Blocked . | . . . . Overload Shots . | . . . . Overflow Damage 2 | . . 2 . Projectiles . | . . . . Explosions 2 | . . 2 . Melee . | . . . . Knockbacks 4 | . . 4 . Impact . | . . . . Kinetic 4 | . . 4 . Secondary . | . . . . Self-Inflicted Damage 92 | . . 92 . Shots 6 | . . 6 . Rammed . | . . . . Targets Rammed 2 | . 2 . . Kicked 2 | . 2 . . Crushed . | . . . . Highest Temperature 186 | . 26 . 186 Average Temperature 66 | . 13 . 91 Received Heat Transfer 480 | . 36 225 219 Siege Activations . | . . . . Martial Activations . | . . . . Shielding Activations . | . . . . Robots Disrupted . | . . . . Combat Hostiles . | . . . . Robots Corrupted . | . . . . Combat Hostiles . | . . . . Parts Fried . | . . . . Impact Corruptions . | . . . . Robots Melted . | . . . . Combat Hostiles . | . . . . Parts Melted 2 | . . . 2 Heat Transferred 50 | . 50 . . Parts Sabotaged . | . . . . Parts Stolen . | . . . . Parts Stripped . | . . . . Power Chain Reactions . | . . . . Alert | -11 -10 -10 -9 ------- Run | Yrd Mat Sub Scr Maximum Alert Level . | . . . . Low Security (%) 100 | 100 100 . . Level 1 . | . . . . Level 2 . | . . . . Level 3 . | . . . . Level 4 . | . . . . Level 5 . | . . . . High Security . | . . . . Max Security . | . . . . Peak Influence 30 | . 30 . . Initial . | . . . . Average 3 | . 3 . . Influence Increases 303 | . 88 215 . Destroy 0b10 Robot/C 180 | . 40 140 . Destroy 0b10 Robot/NC 20 | . 20 . . Destroy Leader 28 | . 28 . . Lose Combat Pursuer 75 | . . 75 . Influence Decreases 303 | . 88 93 122 Entered New Map 122 | . . . 122 Time Decay 131 | . 88 43 . Lost Part 50 | . . 50 . Squads Dispatched 2 | . 2 . . Investigation . | . . . . Extermination . | . . . . Reinforcement 2 | . 2 . . Assault . | . . . . Garrison . | . . . . Intercept . | . . . . Searches Triggered . | . . . . Construction Impeded . | . . . . Haulers Reinforced . | . . . . Active Scanning Responses . | . . . . Cargo Convoy Interrupts . | . . . . Stealth | -11 -10 -10 -9 --------- Run | Yrd Mat Sub Scr Distress Signals 1 | . 1 . . Communications Jammed . | . . . . Distress Signals . | . . . . Times Spotted 40 | . 12 17 11 Peak Tracking Total 8 | . 3 4 8 Tactical Retreats 2 | . . 2 . Traps | -11 -10 -10 -9 ------- Run | Yrd Mat Sub Scr Traps Triggered 2 | . . 2 . Indirectly . | . . . . Trap Hack Attempts . | . . . . Triggered . | . . . . Disarmed . | . . . . Reprogrammed . | . . . . Reused . | . . . . Traps Extracted . | . . . . Installed . | . . . . Triggered . | . . . . Machines | -11 -10 -10 -9 ---------- Run | Yrd Mat Sub Scr Machines Disabled 4 | . . 4 . Max in Single Turn 2 | . . 2 . Machines Repaired . | . . . . Machines Dismantled . | . . . . Machines Sabotaged . | . . . . Overloaded Fab Kills . | . . . . Hacking | -11 -10 -10 -9 --------- Run | Yrd Mat Sub Scr Machines Accessed 8 | . . 3 5 Terminals . | . . . . Fabricators . | . . . . Repair Stations . | . . . . Recycling Units . | . . . . Scanalyzers . | . . . . Garrison Access . | . . . . Total Hacks 33 | . . 7 26 Successful 33 | . . 7 26 Failed . | . . . . Catastrophic . | . . . . Database Lockouts . | . . . . Manual . | . . . . Terminals . | . . . . Fabricators . | . . . . Repair Stations . | . . . . Recycling Units . | . . . . Scanalyzers . | . . . . Garrison Access . | . . . . Terminal Hacks 33 | . . 7 26 Record 30 | . . 5 25 Open Door 1 | . . 1 . Proto ID Catalog 1 | . . . 1 Release Object 1 | . . 1 . Fabricator Hacks . | . . . . Repair Station Hacks . | . . . . Recycling Unit Hacks . | . . . . Scanalyzer . | . . . . Garrison Access Hacks . | . . . . Unauthorized Hacks . | . . . . Terminals . | . . . . Fabricators . | . . . . Repair Stations . | . . . . Recycling Units . | . . . . Scanalyzers . | . . . . Garrison Access . | . . . . Data Cores Recovered . | . . . . Used . | . . . . Hacking Detections . | . . . . Full Trace Events . | . . . . Feedback Events . | . . . . Feedback Blocked . | . . . . Robot Schematics Acquired . | . . . . Robots Built . | . . . . Authchips . | . . . . Time . | . . . . Total Robot Build Rating . | . . . . Part Schematics Acquired . | . . . . Parts Built . | . . . . Authchips . | . . . . Time . | . . . . Total Part Build Rating . | . . . . Parts Repaired . | . . . . Time . | . . . . Parts Recycled . | . . . . Recycled Matter . | . . . . Retrieved Matter . | . . . . Retrieved Components . | . . . . Parts Scanalyzed . | . . . . Part Schematics Acquired . | . . . . Parts Damaged . | . . . . Bothacking | -11 -10 -10 -9 ------------ Run | Yrd Mat Sub Scr Used RIF Installer . | . . . . Robots Hacked . | . . . . Non-combat . | . . . . Combat . | . . . . Robot Hacks Applied . | . . . . Relay Couplers Released . | . . . . Fabnet Peak Effective % . | . . . . Robots Rewired . | . . . . Allies Hacked . | . . . . Hacks Repelled . | . . . . Allies | -11 -10 -10 -9 -------- Run | Yrd Mat Sub Scr Total Allies . | . . . . Largest Group . | . . . . Highest-Rated Group . | . . . . Highest-Rated Ally . | . . . . Total Orders . | . . . . Ally Attacks . | . . . . Total Damage . | . . . . Kills . | . . . . Allies Corrupted . | . . . . Allies Melted . | . . . . Intel | -11 -10 -10 -9 ------- Run | Yrd Mat Sub Scr Active Infowar (turns) 1839 | . . . 1839 Sensors 1839 | . . . 1839 Robot Analysis Total . | . . . . Derelict Logs Recovered 3 | . . 2 1 Drone Launches . | . . . . Drone Recoveries . | . . . . Exploration | -11 -10 -10 -9 ------------- Run | Yrd Mat Sub Scr Turns Passed 5426 | 65 619 2067 2675 Spaces Moved 3666 | 49 441 1906 1270 Core 158 | 4 . 154 . Treads . | . . . . Legs 950 | 45 441 464 . Wheels 2558 | . . 1288 1270 Hover . | . . . . Flight . | . . . . Fastest Speed 50 | 50 120 50 120 Average Speed 120 | 114 120 98 154 Slowest Speed 200 | 120 120 200 165 Overloaded Moves . | . . . . Propulsion Burnouts . | . . . . Robots Hopped . | . . . . Potential Cave-ins . | . . . . Cave-ins Triggered . | . . . . Exploration Rate (%) 52 | 4 46 81 78 Regions Visited 3 Branch Regions 2 Pre-discovered Areas 4 | . . 2 2 Known Exits Taken . | . . . . Unknown Exits Taken 3 | 1 1 1 . Scrap Searched 4 | . . 2 2 Spaces Dug 19 | . . 19 . Terrain Destroyed 141 | . . 136 5 Melee . | . . . . Projectile 5 | . . . 5 AOE 136 | . . 136 . Terrain Rammed . | . . . . Walls Destroyed . | . . . . Machines Disabled . | . . . . Actions | -11 -10 -10 -9 --------- Run | Yrd Mat Sub Scr Total 4551 | 55 495 2026 1975 Wait 758 | . 18 64 676 Move 3663 | 48 440 1905 1270 Hop . | . . . . Pick Up 21 | 1 9 3 8 Fast Attach 17 | 6 3 1 7 Attach 6 | . . 6 . Detach 2 | . . 2 . Swap 3 | . . 3 . Drop 18 | . 4 4 10 Fire 60 | . 19 38 3 Melee . | . . . . Ram . | . . . . Kick 2 | . 2 . . Crush . | . . . . Escape Stasis . | . . . . Rewire . | . . . . Trap . | . . . . Miscellaneous 1 | . . . 1 Route ------- -11/Scrapyard -10/Materials (discovered 2 exits: [*Min] / *Sub) -10/Subcaves (discovered 5 exits: [*Mat x2] / [*Rec] / *Scr x2) -9/Scraptown (discovered 2 exits: [*Fac x2]) History --------- Turn | Location | Event 3 | -11/Scrapyard | Discovered new exit (range 15) 66 | -11/Scrapyard | Entered Materials 67 | -10/Materials | Met a group of wandering Federalists 154 | -10/Materials | Discovered new exit (range 5) 267 | -10/Materials | Discovered new exit (range 16) 314 | -10/Materials | Build established: Mutant 685 | -10/Materials | Entered Subcaves 686 | -10/Subcaves | Continued accompanying wandering Federalists (6) 686 | -10/Subcaves | Approached by a straggling Scientist 704 | -10/Subcaves | Discovered new exit (range 15) 713 | -10/Subcaves | Ambushed by Subdwellers from Twisted Machinery 746 | -10/Subcaves | Lost 3 allies 903 | -10/Subcaves | Wandering Federalist uncovered a shortcut to Scraptown 1026 | -10/Subcaves | Shifting Twisted Machinery released Mak. Kinetic Plating 1034 | -10/Subcaves | Shifting Twisted Machinery released Sub. Monowheel 1205 | -10/Subcaves | Learned 2 Materials zone layouts 1223 | -10/Subcaves | A swath of the cavern ceiling suddenly collapsed 1451 | -10/Subcaves | Shifting Twisted Machinery released Shrapnel Trap 1502 | -10/Subcaves | Shifting Twisted Machinery released Sub. Laser 1503 | -10/Subcaves | Shifting Twisted Machinery released Battle Rifle 1584 | -10/Subcaves | Discovered new exit (range 15) 1590 | -10/Subcaves | Shifting Twisted Machinery released Sub. Power Source 1596 | -10/Subcaves | Learned location of Mines (-9) 1605 | -10/Subcaves | A swath of the cavern ceiling suddenly collapsed 1879 | -10/Subcaves | Scientist uncovered a shortcut to Scraptown 2106 | -10/Subcaves | Ambushed by Subdweller buried in earth 2305 | -10/Subcaves | Visited Clippyterm 2308 | -10/Subcaves | Learned location of Extension (-5) 2308 | -10/Subcaves | Learned Factory trap positions 2382 | -10/Subcaves | Core integrity fell below 50% 2589 | -10/Subcaves | Discovered new exit (range 12) 2630 | -10/Subcaves | Lost 5 parts (2n1u2w) 2728 | -10/Subcaves | Found SUBCON Basin 2752 | -10/Subcaves | Entered Scraptown 2934 | -9/Scraptown | Visited UFD Registry 3179 | -9/Scraptown | Visited Awakened 3215 | -9/Scraptown | Visited Comm Corps 3305 | -9/Scraptown | Scanned Subdweller tech in exchange for log data 3311 | -9/Scraptown | Learned location of Warlord (-4) 3341 | -9/Scraptown | Discovered new exit (range 5) 3881 | -9/Scraptown | Visited Observation Area 3952 | -9/Scraptown | Visited Assassins FH 4016 | -9/Scraptown | Visited CR-KLE's Repair Center 4064 | -9/Scraptown | Visited Cave Peace 4132 | -9/Scraptown | Visited Artisan Demo Area 4406 | -9/Scraptown | Registered with UFD as "Rustrunner" 4462 | -9/Scraptown | Visited LU-1G1's Boring Crew 4552 | -9/Scraptown | Visited Science Guys 5059 | -9/Scraptown | Visited Junk Repository 5105 | -9/Scraptown | Visited Cartography Club 5262 | -9/Scraptown | Met Optimus 5262 | -9/Scraptown | Accepted into 0bPrime 5332 | -9/Scraptown | Visited Scrapoid Pod Storage 5385 | -9/Scraptown | Civil war broke out across Scraptown 5386 | -9/Scraptown | Released subatomizers from SUBCON Basin 5398 | -9/Scraptown | Discovered new exit (range 9) 5408 | -9/Scraptown | Core integrity fell below 20% 5427 | -9/Scraptown | Destroyed by R7-XDG(j) with Overtuned Pulse Rifle Last Messages --------------- 05402_ Slug penetrates 47-CW1(j). 05402_ 47-CW1(j) suffers critical hit (Destroy). 05402_ Lgt. Deuterium Engine melted. 05402_ 47-CW1(j) destroyed. 05402_ Slug penetrates Earth. 05405_ O5-XDD(x) suffers critical hit (Destroy). 05407_ Critical hit (Burn: +50). 05408_ Slug penetrates Wall. 05408_ Slug penetrates Earth. 05408_ Ovr. Pulse Rifle melted. 05408_ VI-EBU(j) destroyed. 05409_ Critical hit (Burn: +50). 05409_ O5-XDD(x) destroyed. 05411_ 0P-SEY(E) suffers critical hit (Burn). 05411_ 0P-SEY(E) overheating. 05412_ V6-YHR(j) heat damages Scrap Suit. 05412_ 0P-SEY(E) destroyed. 05413_ Critical hit (Burn: +50). 05414_ JW-UIY(j) destroyed. 05425_ VN-UDC(x) destroyed. Map ----- +----------------------------------------------------+ | | | | | | | | | | | | | | | | | ?????????????????????????????????????????????????? | | ?????????????????????????????????????????????????? | | ?????????????????????????????????????????????????? | | ?????????????????????????????????????????????????? | | ?????????????????????????????????????????????????? | | ?????????????????????????????????????????????????? | | ?????????????????????????????????????????????????? | | ?????????????????????????????????????????????????? | | ?????????????????????????????????????????????????? | | ?????????????????????????????????????????????????? | | ?????????????????????????????????????????????????? | | ?????????????????????????????????????????????????? | | ??????????????????????????????????#???#??????????? | | ?????????????????????####????##?!=##=!#??????????? | | ????????????????????## ##??#*#!<%%!#????????????? | | ?????????""|##!!"#### ###!!!%%!##?????????????? | | ???????? !j!j=!=*#?????????????? | | ???????? @*=j%j[!%!#?????????????? | | ???????????########## ######/####?????????????? | | ????????????????????## ##???????????????????????? | | ###########??????????# #????????????????????????? | | """"""""""#??????????# #????????????????????????? | | "" X """""#??????????# #????????????????????????? | | """ """#??????????# #????????????????????????? | | "/" "#??????????# #????????????????????????? | | """ """#??????????# #?????###????????????????? | | " """"############ &#?????#X#????????????????? | | ""## [#!]!# !# #?????# #????????????????? | | " "" ""##[=# * # =# #?????# #????????????????? | | " "" ""## # # " ####### ######???????????? | | ## # # #???????????? | | "## #* # ? #???????????? | | #### ########### #####%!## ###########???????????? | | #### ########### ##### ## ##????????????????????? | | """" """"""""""" """"" "" "#????????????????????? | | "#????????????????????? | | "#???####?????????????? | | "#?? !*#?????????????? | | "## | #?????????????? | | ! #?????????????? | | """""""""""""""""""""" "## ####?????????????? | | """""""""""""""""""""" "#?? ??????????????? | +----------------------------------------------------+ Best States ------------- Heat Dissipation 35 Energy Generation 18 Energy Capacity 300 Matter Stores 276 Matter Capacity 300 Sight Range 16 Robot Scan Range 15 Terrain Scan Density 10 Evasion (%) 55 Item Schematics ----------------- None Robot Schematics ------------------ None Fabricated ------------ Nothing Repaired ---------- Nothing Alien Tech Used ----------------- None Achievements -------------- None Challenges ------------ None Game ------ Seed BoreIntegratedShredder Manual? 0 Play Time 00:29:52 Cumulative 302.0 hours Start 2025.08.02 @ 10:29:17 End 2025.08.02 @ 11:00:13 Sessions 1 Manual Loads 0 Difficulty Rogue Special Mode None Game No. 125 Rogue 54 Adventurer 68 Explorer 3 Win Type - Total 24 Types 16/1/1/4/1/0/0/0/0/1 Lore% 76 Gallery% 73 Achievement% 71 Wizard Run 0 Options --------- Layout 0 ASCII 0 Keyboard 0 Movement Numpad Keybinds 0 Fullscreen 1 Font 24/Smallcaps Map View 76x50 Zoom Use 0% Tactical HUD 1 Map Filters NONE Filters NONE Steam 1 RUN: ee2dac25-8b25-409b-85e9-286a64d21f12